bitfinex/quotes_SOLUSD_20240727
["timestamp","ask_amount","ask_price","bid_price","bid_amount"]
[1722093137872,5.4325,184.08,183.95,16.1186]
[1722093138191,6.2495,184.1,183.95,22.2024]
[1722093138371,5.4332,184.06,183.95,22.2024]
[1722093138567,5.4326,184.08,184.0,5.4347]
[1722093138774,5.4326,184.08,183.95,22.2024]
[1722093138775,5.4327,184.07,184.01,5.4343]
[1722093138974,1.35853284,184.08,184.01,5.4343]
[1722093139371,1.35853284,184.08,183.95,22.2024]
[1722093139372,5.4329,184.07,183.95,22.2024]
[1722093139573,1.35853284,184.08,184.01,5.4343]
[1722093139777,5.4323,184.09,183.95,22.2024]
[1722093139974,6.78937418,184.14,184.06,5.4329]
[1722093140266,1.35847418,184.14,184.04,5.4334]
[1722093140583,5.4321,184.09,183.95,50.8624]
[1722093140790,258.6,184.15,184.03,5.4338]
[1722093140791,1.35839491,184.08,184.03,5.4338]
[1722093140992,1.35840109,184.1,183.95,50.8624]
[1722093141375,5.4329,184.07,183.99,5.4349]
[1722093141579,1.35858817,184.06,183.99,5.4349]
[1722093141785,13.5804,184.09,183.95,22.2024]
[1722093142277,5.4331,184.06,183.99,5.435]
[1722093142474,1.35868321,184.05,183.95,22.2024]
[1722093142696,1.35870756,184.04,183.95,16.1186]
[1722093142896,5.4339,184.03,183.95,16.1186]
[1722093143500,1.35870756,184.04,183.98,5.4353]
[1722093143501,5.4336,184.04,183.98,5.4353]
[1722093143805,5.4332,184.06,184.0,5.4347]
[1722093144205,6.79198374,184.05,183.95,16.1186]
[1722093144391,5.4336,184.04,183.95,16.1186]
[1722093144589,1.35868374,184.05,184.0,5.4347]
[1722093144590,5.4333,184.05,184.0,5.4347]
[1722093144778,46.35868716,184.08,184.0,5.4346]
[1722093144779,5.4329,184.07,184.0,5.4346]
[1722093145112,1.35868556,184.07,183.98,5.435]
[1722093145405,51.23068556,184.07,183.94,5.4362]
[1722093145604,13.5842,184.04,183.89,22.2024]
[1722093145781,1.35890834,184.03,183.89,22.2024]
[1722093145980,5.4345,184.01,183.96,5.4359]
[1722093146217,1.35890006,184.01,183.96,5.4359]
[1722093146504,5.4352,183.99,183.89,22.2024]
[1722093146698,1.35890006,184.01,183.94,5.4364]
[1722093146916,1.35890006,184.01,183.89,22.2024]
[1722093147075,1.35890006,184.01,183.94,5.4365]
[1722093147278,1.35896055,184.03,183.94,5.4365]
[1722093147478,1.35896055,184.03,183.89,22.2024]
[1722093147678,21.3587426,184.07,183.89,22.2024]
[1722093147896,5.4341,184.03,183.9,45.8262348]
[1722093148185,5.4341,184.03,183.97,5.4356]
[1722093148401,1.35870784,184.06,183.97,5.4356]
[1722093148710,5.4339,184.03,183.98,5.4353]
[1722093148907,5.4336,184.04,183.98,5.4353]
[1722093149207,5.434,184.03,183.98,5.4353]
[1722093149409,5.4335,184.05,183.99,5.4349]
[1722093149609,1.35881957,184.05,183.9,45.8262348]
[1722093149905,5.4333,184.06,183.91,0.34]
[1722093150415,22.6486,184.05,183.91,0.34]
[1722093150605,16.29,184.02,183.9,0.8262348]
[1722093150798,5.4357,183.97,183.92,5.437]
[1722093150998,1.35919157,184.01,183.93,5.4368]
[1722093151208,1.35919157,184.01,183.93,5.4365]
[1722093151522,5.4356,183.97,183.91,5.4374]
[1722093151806,5.4364,183.95,183.9,0.8262348]
[1722093152012,6.79593922,183.94,183.9,0.8262348]
[1722093152181,5.4364,183.95,183.9,0.8262348]
[1722093152381,6.79575396,183.95,183.9,6.2639348]
[1722093152588,5.4364,183.95,183.9,6.2639348]
[1722093152811,1.35937617,183.94,183.9,6.2639348]
[1722093153417,6.79440583,183.99,183.93,5.4365]
[1722093153709,1.35912377,183.98,183.9,0.8262348]
[1722093154021,5.4365,183.95,183.9,0.8262348]
[1722093154182,1.35949243,183.94,183.9,0.8262348]
[1722093154487,1.35949243,183.94,183.71,1.71393738]
[1722093154488,14.2302,183.93,183.73,22.6114]
[1722093154697,5.4383,183.88,183.83,5.4395]
[1722093154895,6.79878097,183.87,183.81,5.4401]
[1722093155100,6.79878097,183.87,183.73,22.6114]
[1722093155101,5.4389,183.86,183.79,5.4407]
[1722093155293,13.5929,183.92,183.75,5.4421]
[1722093155294,46.3600677,183.85,183.75,5.4421]
[1722093155494,16.29,183.88,183.8,5.4405]
[1722093155721,66.3601985,183.87,183.71,0.7720348]
[1722093156112,71.7990985,183.87,183.8,5.4404]
[1722093156335,62.6501985,183.87,183.71,0.7720348]
[1722093156702,62.6501985,183.87,183.8,5.4406]
[1722093156896,13.5945,183.9,183.71,0.7720348]
[1722093157229,66.36015368,183.89,183.72,28.66]
[1722093157437,1.36015368,183.89,183.72,28.66]
[1722093157728,5.4374,183.91,183.73,16.0401]
[1722093158024,1.35989984,183.92,183.73,36.0401]
[1722093158025,6.79693413,183.92,183.73,36.0401]
[1722093158203,1.35983413,183.92,183.88,5.4382]
[1722093158414,1.35983413,183.92,183.75,28.66]
[1722093158608,1.35983413,183.92,183.76,45.34]
[1722093158934,6.4348,183.93,183.76,45.34]
[1722093159222,1.35972749,183.92,183.73,16.0401]
[1722093159396,5.4378,183.9,183.82,5.4398]
[1722093159597,1.35980352,183.9,183.74,74.0]
[1722093159819,6.79780183,183.89,183.84,5.4394]
[1722093160130,5.4377,183.9,183.83,5.4395]
[1722093160299,5.4377,183.9,183.74,74.0]
[1722093160300,6.79781203,183.89,183.74,74.0]
[1722093160501,1.35981203,183.89,183.74,73.66]
[1722093160705,5.4391,183.86,183.8,5.4406]
[1722093160930,5.4393,183.85,183.8,5.4406]
[1722093161101,5.4396,183.84,183.78,5.441]
[1722093161301,1.36009237,183.84,183.73,16.0401]
[1722093161623,5.4376,183.91,183.86,5.4388]
[1722093161938,5.4376,183.91,183.71,7.3433348]
[1722093161939,16.2138,183.85,183.71,0.7720348]
[1722093162311,16.36,183.89,183.71,0.7720348]
[1722093162712,20.0,183.88,183.71,0.7720348]
[1722093162931,20.0,183.88,183.78,5.4411]
[1722093162932,5.4397,183.84,183.78,5.4411]
[1722093163101,20.0,183.88,183.78,5.441]
[1722093163102,5.4392,183.85,183.78,5.441]
[1722093163302,5.4392,183.85,183.79,5.4407]
[1722093163525,5.4397,183.84,183.71,0.7720348]
[1722093163828,1.36022639,183.87,183.73,16.0401]
[1722093164032,5.4389,183.86,183.8,5.4406]
[1722093164211,5.4392,183.85,183.78,5.441]
[1722093164418,1.36008563,183.89,183.73,22.6114]
[1722093164604,5.4398,183.83,183.73,22.6114]
[1722093164805,5.4392,183.85,183.79,5.4407]
[1722093165027,6.79961551,183.84,183.73,22.6114]
[1722093165229,13.5964,183.88,183.73,22.6114]
[1722093165425,5.4397,183.84,183.78,5.4411]
[1722093165743,5.4392,183.85,183.78,5.4411]
[1722093165959,5.4395,183.84,183.78,5.4411]
[1722093166122,1.36009023,183.87,183.76,5.4416]
[1722093166436,1.36009023,183.87,183.74,0.17]
[1722093166437,5.4399,183.83,183.78,5.4412]
[1722093166608,5.4399,183.83,183.77,5.4415]
[1722093166805,5.4399,183.83,183.78,5.4411]
[1722093167023,1.36009023,183.87,183.76,5.4418]
[1722093167335,5.4392,183.85,183.73,22.6114]
[1722093167512,6.79957565,183.84,183.79,5.4409]
[1722093167710,5.4396,183.84,183.79,5.4409]
[1722093167916,5.4396,183.84,183.74,45.17]
[1722093167917,5.4399,183.83,183.78,5.441]
[1722093168227,5.4398,183.83,183.77,5.4415]
[1722093168631,5.4394,183.85,183.79,5.4409]
[1722093168836,5.4395,183.84,183.79,5.4409]
[1722093169132,5.4399,183.83,183.78,5.4412]
[1722093169303,29.9576,183.86,183.73,22.6114]
[1722093169508,62.72037709,183.85,183.71,0.7720348]
[1722093170257,5.443,183.72,183.71,0.7720348]
[1722093170534,35.4546,183.79,183.71,0.7720348]
[1722093170535,1.36116403,183.75,183.71,0.7720348]
[1722093170742,5.443,183.72,183.71,0.7720348]
[1722093171027,1.36093689,183.78,183.71,0.7720348]
[1722093171227,5.443,183.72,183.71,0.7720348]
[1722093171420,21.973,183.72,183.71,0.7720348]
[1722093171728,66.973,183.72,183.71,0.7720348]
[1722093171915,68.33442889,183.72,183.71,0.7720348]
[1722093172122,6.80442889,183.72,183.71,0.7720348]
[1722093172327,5.443,183.72,183.71,3.48e-05]
[1722093173013,17.72138219,183.73,183.63,5.4456]
[1722093173246,17.72138219,183.73,183.54,15.1094]
[1722093173538,5.4434,183.71,183.65,5.4451]
[1722093173750,5.4437,183.7,183.64,5.4452]
[1722093173909,1.36113929,183.7,183.62,5.4459]
[1722093174107,1.36113929,183.7,183.54,43.7694]
[1722093174312,5.4444,183.68,183.54,43.7694]
[1722093174540,1.36135852,183.75,183.54,43.7694]
[1722093174829,5.4434,183.71,183.54,43.7694]
[1722093175015,5.4438,183.7,183.64,5.4451]
[1722093175219,5.4442,183.68,183.63,5.4457]
[1722093175430,13.6071,183.73,183.54,43.7694]
[1722093175730,5.4432,183.72,183.55,45.34]
[1722093175942,5.4434,183.71,183.55,45.34]
[1722093176111,5.4447,183.67,183.55,45.34]
[1722093176316,5.4447,183.67,183.62,5.4459]
[1722093176317,5.4445,183.67,183.62,5.4459]
[1722093176823,29.9698,183.7,183.54,43.7694]
[1722093177022,5.57515828,183.76,183.54,15.1094]
[1722093177023,1.36155127,183.72,183.54,15.1094]
[1722093177228,5.4434,183.71,183.65,5.4448]
[1722093177428,5.57515828,183.76,183.54,15.1094]
[1722093177429,1.36128812,183.73,183.54,43.7694]
[1722093177657,5.57515828,183.76,183.55,16.36]
[1722093177818,5.57515828,183.76,183.59,45.02]
[1722093178144,5.4429,183.73,183.67,5.4444]
[1722093178323,1.36099669,183.74,183.67,5.4444]
[1722093178513,1.36099669,183.74,183.54,15.1094]
[1722093178514,1.36103037,183.73,183.54,43.7694]
[1722093178719,6.80373037,183.73,183.67,5.4444]
[1722093178917,1.36096704,183.72,183.55,65.34]
[1722093179149,5.4415,183.78,183.58,28.66]
[1722093179319,5.4422,183.75,183.59,65.34]
[1722093179641,1.36082568,183.76,183.71,5.4432]
[1722093179844,5.4413,183.78,183.72,5.4429]
[1722093180145,6.93544891,183.83,183.75,5.4421]
[1722093180332,1.36044517,183.82,183.75,5.4421]
[1722093180534,5.4414,183.78,183.72,5.443]
[1722093180735,5.4414,183.78,183.56,20.0]
[1722093180736,1.36053974,183.77,183.59,21.3338]
[1722093180920,1.36113853,183.76,183.59,21.3338]
[1722093181320,5.4432,183.72,183.65,5.4448]
[1722093181527,1.36113853,183.76,183.59,21.3338]
[1722093181729,5.4436,183.71,183.64,5.4451]
[1722093181933,5.4438,183.7,183.65,5.445]
[1722093182130,1.36113853,183.76,183.59,21.3338]
[1722093182527,1.36113853,183.76,183.66,5.4448]
[1722093182731,5.4428,183.73,183.67,5.4445]
[1722093183026,5.4427,183.73,183.67,5.4445]
[1722093183228,5.4427,183.73,183.59,21.3338]
[1722093183534,1.36094772,183.72,183.62,5.4458]
[1722093183738,5.4448,183.67,183.61,5.4462]
[1722093184045,5.444,183.69,183.64,5.4454]
[1722093184240,1.36115517,183.74,183.59,15.1094]
[1722093184447,5.4439,183.7,183.59,15.1094]
[1722093184643,13.6047,183.76,183.59,15.1094]
[1722093184844,16.36,183.73,183.59,15.1094]
[1722093185028,5.4446,183.67,183.59,15.1094]
[1722093185231,1.36132536,183.7,183.59,15.1094]
[1722093185549,5.4442,183.68,183.61,5.4461]
[1722093185843,20.0,183.79,183.59,15.1094]
[1722093185844,22.3898,183.8,183.59,15.1094]
[1722093186044,27.2081,183.77,183.59,15.1094]
[1722093186245,5.4451,183.65,183.6,5.4465]
[1722093186431,5.4448,183.67,183.59,15.1094]
[1722093186631,13.61,183.69,183.59,15.1094]
[1722093186833,5.4451,183.65,183.59,20.5563]
[1722093187150,1.36142162,183.76,183.64,5.4453]
[1722093187337,1.36101702,183.75,183.59,15.1094]
[1722093187544,5.4432,183.72,183.65,5.4448]
[1722093187835,5.4432,183.72,183.59,15.1094]
[1722093187836,5.443,183.72,183.66,5.4448]
[1722093188038,1.36101702,183.75,183.59,15.1094]
[1722093188230,5.4441,183.69,183.6,45.34]
[1722093188427,13.6045,183.77,183.67,5.4443]
[1722093188646,5.4421,183.75,183.69,5.4436]
[1722093188849,14.96216177,183.81,183.7,5.4435]
[1722093189029,5.4432,183.72,183.66,5.4446]
[1722093189544,1.36096159,183.77,183.6,45.34]
[1722093189744,5.4421,183.76,183.6,45.34]
[1722093189942,1.36096159,183.77,183.6,45.34]
[1722093190147,14.96353941,183.79,183.6,45.34]
[1722093190328,5.4418,183.77,183.7,5.4434]
[1722093190530,14.96353941,183.79,183.66,6.4645]
[1722093190531,5.4412,183.79,183.72,5.443]
[1722093190852,1.36053979,183.79,183.67,16.432]
[1722093191030,1.36085315,183.78,183.67,16.432]
[1722093191352,1.36085315,183.78,183.6,16.432]
[1722093191353,6.2539,183.76,183.6,16.432]
[1722093191530,5.4443,183.68,183.6,16.432]
[1722093191731,5.4441,183.69,183.6,16.432]
[1722093192030,5.4436,183.71,183.6,16.432]
[1722093192339,1.36110127,183.77,183.6,16.432]
[1722093192541,5.58694054,183.81,183.61,20.0]
[1722093192542,1.36066113,183.8,183.61,20.0]
[1722093192741,5.58694054,183.81,183.74,5.4423]
[1722093192945,5.4409,183.8,183.74,5.4423]
[1722093193151,5.441,183.79,183.73,5.4427]
[1722093193545,5.4406,183.81,183.75,5.4421]
[1722093193749,1.36030978,183.84,183.76,5.4418]
[1722093193949,5.4405,183.81,183.72,16.432]
[1722093194169,5.4409,183.8,183.72,16.432]
[1722093194448,1.3603299,183.84,183.72,16.432]
[1722093194625,6.94451527,183.85,183.72,16.432]
[1722093194831,5.44,183.83,183.78,5.4412]
[1722093195027,1.36009239,183.82,183.73,5.4427]
[1722093195239,5.4404,183.81,183.72,16.432]
[1722093195449,5.4419,183.76,183.72,16.432]
[1722093195751,13.5998,183.83,183.48,20.0]
[1722093195752,1.36063902,183.79,183.64,22.8965]
[1722093195975,5.4406,183.81,183.74,5.4422]
[1722093196145,28.66,183.83,183.66,5.4446]
[1722093196146,5.4431,183.72,183.66,5.4446]
[1722093196326,5.4431,183.72,183.64,22.8965]
[1722093196327,5.4427,183.74,183.67,5.4443]
[1722093196530,1.36091,183.78,183.64,22.8965]
[1722093196727,13.6025,183.79,183.64,22.8965]
[1722093196728,5.4412,183.79,183.64,22.8965]
[1722093196959,5.4412,183.78,183.72,5.4429]
[1722093197147,5.4412,183.79,183.73,5.4426]
[1722093197363,5.4407,183.8,183.74,5.4424]
[1722093197556,5.441,183.79,183.74,5.4424]
[1722093197856,14.96051328,183.83,183.64,22.8965]
[1722093198035,5.4407,183.8,183.75,5.4421]
[1722093198227,1.36042816,183.85,183.73,5.4426]
[1722093198432,16.36,183.83,183.73,5.4426]
[1722093198639,16.36,183.83,183.65,45.34]
[1722093198640,1.36056147,183.82,183.65,45.34]
[1722093198840,13.6011,183.81,183.72,5.4429]
[1722093199042,5.4413,183.78,183.72,5.443]
[1722093199433,5.441,183.79,183.74,5.4424]
[1722093199638,1.36045569,183.78,183.64,22.8965]
[1722093199852,5.4433,183.72,183.66,5.4446]
[1722093200057,1.36045569,183.78,183.64,22.8965]
[1722093200630,5.4421,183.76,183.71,5.4433]
[1722093200832,5.442,183.76,183.7,5.4434]
[1722093201057,14.96098243,183.82,183.72,5.443]
[1722093201264,14.96098243,183.82,183.76,5.4416]
[1722093201265,6.80088243,183.82,183.76,5.4416]
[1722093201431,5.44,183.83,183.77,5.4415]
[1722093201638,13.5975,183.86,183.75,16.432]
[1722093201639,5.4407,183.8,183.75,16.432]
[1722093201965,6.80140591,183.79,183.75,16.432]
[1722093202135,5.4406,183.81,183.75,16.432]
[1722093202334,5.4406,183.81,183.76,5.4418]
[1722093202537,5.58467271,183.87,183.75,22.8965]
[1722093202837,0.58467271,183.87,183.85,5.4389]
[1722093203039,1.36009435,183.89,183.76,45.17]
[1722093203488,1.35974062,183.93,183.82,5.4399]
[1722093203667,1.35973799,183.92,183.83,5.4397]
[1722093203847,5.438,183.89,183.84,5.4394]
[1722093204042,1.35974156,183.88,183.82,5.4398]
[1722093204467,1.35974156,183.88,183.83,5.4397]
[1722093204850,5.4377,183.9,183.77,0.17]
[1722093205052,6.2539,183.94,183.77,0.17]
[1722093205053,5.4381,183.89,183.77,0.17]
[1722093205254,1.35973349,183.89,183.77,0.17]
[1722093205464,1.35973349,183.89,183.76,45.17]
[1722093205661,5.439,183.86,183.8,5.4404]
[1722093205859,5.439,183.86,183.81,5.4403]
[1722093206063,5.4379,183.9,183.84,5.4394]
[1722093206246,6.797131,183.91,183.86,5.4388]
[1722093206451,1.35963486,183.95,183.76,45.02]
[1722093206753,6.79603486,183.95,183.89,5.438]
[1722093207053,1.35942627,183.98,183.92,5.4368]
[1722093207245,1.35942627,183.98,183.86,6.4386]
[1722093207448,5.4359,183.96,183.9,5.4376]
[1722093207744,1.35927893,183.98,183.94,5.4364]
[1722093208074,5.4356,183.97,183.92,5.4368]
[1722093208287,1.35925933,183.96,183.86,6.4386]
[1722093208566,5.4368,183.93,183.88,5.4382]
[1722093208739,5.4371,183.92,183.86,11.8772]
[1722093209238,5.4368,183.93,183.87,5.4385]
[1722093209441,5.4365,183.94,183.88,5.4381]
[1722093210581,5.4366,183.94,183.88,5.4381]
[1722093210770,5.4369,183.93,183.88,5.4381]
[1722093210998,27.181,183.96,183.77,15.6575]
[1722093211184,28.66,183.91,183.77,15.6575]
[1722093211489,5.4395,183.84,183.78,5.4411]
[1722093211643,5.4389,183.86,183.77,15.6575]
[1722093211841,5.4389,183.86,183.81,5.4403]
[1722093212246,1.3599376,183.89,183.82,5.44]
[1722093212247,5.4386,183.87,183.82,5.44]
[1722093212447,5.4386,183.87,183.77,15.6575]
[1722093212645,5.4389,183.86,183.81,5.4402]
[1722093213257,5.4389,183.86,183.77,15.6575]
[1722093213543,5.4389,183.86,183.8,5.4404]
[1722093213761,5.4389,183.86,183.77,15.6575]
[1722093214070,5.4389,183.86,183.8,5.4406]
[1722093214252,5.4394,183.85,183.79,5.4407]
[1722093214464,5.4386,183.87,183.77,15.6575]
[1722093214791,6.79787659,183.9,183.85,5.4391]
[1722093214995,5.438,183.9,183.85,5.4391]
[1722093215310,5.4374,183.91,183.86,5.4388]
[1722093215503,5.4377,183.9,183.84,5.4392]
[1722093216172,1.3596245,183.92,183.78,45.0]
[1722093216503,5.4393,183.85,183.79,5.4408]
[1722093216680,5.4396,183.84,183.79,5.4408]
[1722093217175,5.4398,183.83,183.78,5.4412]
[1722093217780,5.4408,183.8,183.77,15.6575]
[1722093217992,1.36024351,183.87,183.77,15.6575]
[1722093218196,5.4396,183.84,183.79,5.4409]
[1722093218704,1.36002132,183.93,183.77,15.6575]
[1722093219005,1.35972506,183.92,183.81,5.4403]
[1722093219384,16.36,183.9,183.77,15.6575]
[1722093219589,5.4402,183.82,183.77,21.099]
[1722093219803,5.4398,183.83,183.78,5.4412]
[1722093220009,5.4394,183.85,183.79,5.4408]
[1722093220181,1.36009545,183.89,183.77,15.6575]
[1722093220182,1.36002604,183.89,183.77,15.6575]
[1722093220375,5.4389,183.86,183.77,15.6575]
[1722093220701,5.4386,183.87,183.81,5.4401]
[1722093220896,5.4383,183.88,183.82,5.4398]
[1722093221104,5.4383,183.88,183.77,15.6575]
[1722093221105,5.4383,183.88,183.83,5.4397]
[1722093221406,5.4389,183.86,183.8,5.4404]
[1722093221705,5.4392,183.85,183.8,5.4404]
[1722093222002,5.4387,183.87,183.77,15.6575]
[1722093222199,5.4387,183.87,183.82,5.4398]
[1722093222501,5.4381,183.89,183.84,5.4394]
[1722093222681,5.4375,183.91,183.86,5.4389]
[1722093222877,1.35972345,183.95,183.78,6.4386]
[1722093223081,5.437,183.93,183.88,5.4383]
[1722093224015,6.2258,184.0,183.79,90.36]
[1722093224307,5.4362,183.95,183.81,15.6575]
[1722093224483,5.4362,183.95,183.82,45.34]
[1722093224679,1.35926644,183.98,183.8,5.4405]
[1722093224680,5.4392,183.85,183.8,5.4405]
[1722093224889,1.36001732,183.92,183.8,5.4405]
[1722093225093,5.4388,183.87,183.81,5.4402]
[1722093225418,1.35995412,183.86,183.78,15.6575]
[1722093225594,5.4403,183.82,183.78,15.6575]
[1722093225793,5.4395,183.84,183.79,5.4409]
[1722093225988,5.4391,183.86,183.81,5.4403]
[1722093226200,5.4385,183.88,183.82,5.44]
[1722093226609,5.4387,183.87,183.81,5.4403]
[1722093226912,5.4389,183.86,183.78,15.6575]
[1722093227100,5.4386,183.87,183.78,15.6575]
[1722093227418,5.4377,183.9,183.78,15.6575]
[1722093227705,5.4377,183.9,183.85,5.4391]
[1722093228280,5.438,183.89,183.83,5.4395]
[1722093228815,14.95254496,183.92,183.79,45.0]
[1722093228983,5.4382,183.89,183.79,45.0]
[1722093229508,5.4382,183.89,183.84,5.4395]
[1722093229913,5.4382,183.89,183.83,5.4397]
[1722093230107,14.95254496,183.92,183.78,15.6575]
[1722093230108,14.95254496,183.92,183.81,5.4401]
[1722093230318,5.4393,183.85,183.8,5.4406]
[1722093230522,5.4393,183.85,183.79,5.4408]
[1722093230695,5.4393,183.85,183.78,15.6575]
[1722093230696,5.4393,183.85,183.8,5.4406]
[1722093231320,5.4395,183.84,183.78,21.0985]
[1722093231527,5.4395,183.84,183.79,5.4409]
[1722093231707,1.35998072,183.89,183.78,15.6575]
[1722093231708,5.4392,183.85,183.8,5.4406]
[1722093231902,1.36000636,183.92,183.78,15.6575]
[1722093232109,14.9540987,183.91,183.78,15.6575]
[1722093232424,5.4392,183.85,183.8,5.4406]
[1722093233208,5.4392,183.85,183.79,5.4409]
[1722093233596,5.4392,183.85,183.8,5.4405]
[1722093233791,5.4395,183.84,183.79,5.4409]
[1722093233998,5.4392,183.85,183.79,5.4409]
[1722093234297,5.4389,183.86,183.81,5.4403]
[1722093234495,5.4391,183.86,183.8,5.4404]
[1722093234694,14.95423938,183.91,183.78,15.6575]
[1722093234922,1.35985388,183.9,183.78,15.6575]
[1722093235224,5.4389,183.86,183.81,5.4403]
[1722093235405,6.79934018,183.85,183.79,5.4408]
[1722093235614,5.4388,183.87,183.81,5.4403]
[1722093235907,1.35994018,183.88,183.81,5.4403]
[1722093235908,5.439,183.86,183.81,5.4403]
[1722093236516,5.4386,183.87,183.82,5.44]
[1722093237523,1.35991182,183.92,183.78,15.6575]
[1722093237705,5.4386,183.87,183.82,5.4398]
[1722093238227,5.4389,183.86,183.81,5.4403]
[1722093238604,5.4386,183.87,183.82,5.44]
[1722093238802,33.5928,183.92,183.78,15.6575]
[1722093239024,5.438,183.9,183.85,5.4391]
[1722093239201,1.35972977,183.92,183.79,45.0]
[1722093239399,5.4381,183.89,183.84,5.4392]
[1722093240335,1.35972977,183.92,183.82,5.44]
[1722093240336,5.439,183.86,183.82,5.44]
[1722093240505,31.31272977,183.92,183.78,15.6575]
[1722093240711,13.5953,183.89,183.78,15.6575]
[1722093241043,1.3599697,183.88,183.78,15.6575]
[1722093241742,5.4394,183.85,183.79,5.4407]
[1722093242042,5.4394,183.85,183.8,5.4406]
[1722093242823,5.4389,183.86,183.81,5.4403]
[1722093243014,5.4385,183.88,183.83,5.4397]
[1722093243217,1.35991994,183.92,183.78,15.6575]
[1722093243423,21.35991994,183.92,183.78,15.6575]
[1722093243721,9.8123317,183.91,183.78,15.6575]
[1722093243916,5.438,183.89,183.84,5.4394]
[1722093244310,5.4386,183.87,183.82,5.44]
[1722093244638,5.4389,183.86,183.81,5.4403]
[1722093246212,1.35981821,183.9,183.78,15.6575]
[1722093246408,13.5963,183.88,183.78,15.6575]
[1722093246608,5.4395,183.84,183.78,15.6575]
[1722093246808,5.4391,183.86,183.78,15.6575]
[1722093247028,5.4395,183.84,183.78,21.0984]
[1722093247328,5.4395,183.84,183.78,15.6575]
[1722093247531,5.4412,183.79,183.73,15.0164]
[1722093247743,9.8152397,183.83,183.61,20.0]
[1722093247744,5.4417,183.77,183.7,5.4434]
[1722093248040,5.4416,183.77,183.7,5.4435]
[1722093249833,5.441,183.79,183.68,15.0164]
[1722093250127,1.36046219,183.84,183.68,15.0164]
[1722093250434,6.80056219,183.82,183.74,5.4422]
[1722093250614,6.80056219,183.82,183.75,5.4421]
[1722093250615,6.80050975,183.82,183.75,5.4421]
[1722093250810,1.36040975,183.82,183.73,5.4426]
[1722093251206,5.441,183.79,183.73,5.4426]
[1722093251434,5.4406,183.81,183.74,5.4423]
[1722093251728,5.4407,183.8,183.68,15.0164]
[1722093251931,5.4407,183.8,183.69,45.0]
[1722093252139,1.36041534,183.84,183.68,15.0164]
[1722093252347,9.81734195,183.83,183.68,15.0164]
[1722093252543,5.4415,183.78,183.72,5.443]
[1722093252842,5.4415,183.77,183.71,5.4433]
[1722093253031,5.4412,183.79,183.72,5.443]
[1722093253349,1.36045062,183.82,183.72,5.443]
[1722093253636,29.9579,183.86,183.73,5.4427]
[1722093253637,5.4409,183.79,183.73,5.4427]
[1722093254145,1.36050979,183.81,183.68,15.0164]
[1722093254146,5.4412,183.78,183.68,15.0164]
[1722093254333,5.4409,183.8,183.73,5.4427]
[1722093254532,5.441,183.79,183.73,5.4427]
[1722093255032,1.36049256,183.78,183.68,15.0164]
[1722093255541,5.4419,183.76,183.7,5.4434]
[1722093255722,5.4421,183.75,183.69,5.4439]
[1722093256062,1.36075966,183.78,183.68,15.0164]
[1722093256221,5.4429,183.73,183.68,15.0164]
[1722093256540,1.36075966,183.78,183.68,20.4606]
[1722093257249,5.4425,183.74,183.68,20.4606]
[1722093257446,16.36,183.79,183.68,15.0164]
[1722093257447,5.4428,183.73,183.68,15.0164]
[1722093257633,5.4428,183.73,183.64,15.0164]
[1722093258019,5.443,183.72,183.64,15.0164]
[1722093258225,5.443,183.72,183.66,5.4447]
[1722093258538,1.36100502,183.71,183.64,15.0164]
[1722093258846,1.36116866,183.7,183.64,15.0164]
[1722093259028,1.36116866,183.74,183.64,15.0164]
[1722093259233,1.3609668,183.73,183.64,15.0164]
[1722093259544,1.3609668,183.73,183.68,5.4441]